{"text_format":"1","workbook":"xlsx","n_sheets":3,"sheets":["印刷","設定","取説"],"not_rendered":{"charts":0,"images":23,"macros":1,"external_links":0,"defined_names":1,"comments":0,"pivot_tables":0},"unopened":[],"bounds":{"document_bytes":16777216,"sheet_cells":100000,"rows_first":2000,"rows_last":500,"rows_between":2000,"halvings":0,"cell_chars":16384,"cell_head_chars":4096},"cells_cut":0,"cells_raw":0,"read":"whole","date_system":"1900"}

{"sheet":"印刷","index":0,"n_rows":46,"n_cols":74,"rows_kept":46,"cut":false,"hidden":false,"merged":[[39,0,40,0],[42,0,43,0],[45,0,46,0],[21,0,22,0],[24,0,25,0],[27,0,28,0],[30,0,31,0],[33,0,34,0],[36,0,37,0],[18,0,19,0],[3,0,4,0],[6,0,7,0],[9,0,10,0],[12,0,13,0],[15,0,16,0]]}
[null,null,"　文字練習シート",null,null,null,null,null,null,null,null,null,null,null,null,null,null,null,null,null,null,null,null,null,null,null,null,null,null,null,null,null,null,null,null,null,null,null,null,null,null,null,null,null,null,null,null,null,null,null,null,null,null,null,null,"縦置き0  横置き1",null,1,null,null,"フォントサイズ",80]
[null,null,1,null,null,2,null,null,3,null,null,4,null,null,5,null,null,6,null,null,7,null,null,8,null,null,9,null,null,10]
[]
[1,null,null,null,null,null,null,null,null,null,null,null,null,null,null,null,null,null,null,null,null,null,null,null,null,null,null,null,null,null,null,null,null,null,null,null,null,null,null,null,null,null,null,null,null,null,null,null,null,null,null,null,null,{"$f":"IF(BF1=0,MID(BD5,1,1),BE10)","v":"明"},null,{"$f":"IF(設定!C9=\"\",\"\",設定!C9)","v":"明けましておめでとう京都府千代田区淀屋橋"},null,null,null,null,null,null,null,null,null,null,null,null,null,null,null,"総数","上段","下段"]
[null,null,null,null,null,null,null,null,null,null,null,null,null,null,null,null,null,null,null,null,null,null,null,null,null,null,null,null,null,null,null,null,null,null,null,null,null,null,null,null,null,null,null,null,null,null,null,null,null,null,null,null,null,null,null,{"$f":"IF(BF1=0,LEFT(BD4,15),\"\")","v":""},null,null,null,null,null,null,null,null,null,null,null,null,null,null,null,{"$f":"LEN(BD4)","v":20},10,{"$f":"BT5-BU5","v":10}]
[]
[2,null,null,null,null,null,null,null,null,null,null,null,null,null,null,null,null,null,null,null,null,null,null,null,null,null,null,null,null,null,null,null,null,null,null,null,null,null,null,null,null,null,null,null,null,null,null,null,null,null,null,null,null,{"$f":"MID(BD5,2,1)","v":""},null,{"$f":"IF(BF1=1,LEFT(BD4,10),\"\")","v":"明けましておめでとう"}]
[null,null,null,null,null,null,null,null,null,null,null,null,null,null,null,null,null,null,null,null,null,null,null,null,null,null,null,null,null,null,null,null,null,null,null,null,null,null,null,null,null,null,null,null,null,null,null,null,null,null,null,null,null,null,null,{"$f":"IF(AND(BD4<>\"\",BF1=1),RIGHT(BD4,BV5),\"\")","v":"京都府千代田区淀屋橋"}]
[]
[3,null,null,null,null,null,null,null,null,null,null,null,null,null,null,null,null,null,null,null,null,null,null,null,null,null,null,null,null,null,null,null,null,null,null,null,null,null,null,null,null,null,null,null,null,null,null,null,null,null,null,null,null,{"$f":"MID(BD5,3,1)","v":""},null,null,{"$f":"MID(BD7,1,1)","v":"明"},{"$f":"MID(BD7,2,1)","v":"け"},{"$f":"MID(BD7,3,1)","v":"ま"},{"$f":"MID(BD7,4,1)","v":"し"},{"$f":"MID(BD7,5,1)","v":"て"},{"$f":"MID(BD7,6,1)","v":"お"},{"$f":"MID(BD7,7,1)","v":"め"},{"$f":"MID(BD7,8,1)","v":"で"},{"$f":"MID(BD7,9,1)","v":"と"},{"$f":"MID(BD7,10,1)","v":"う"},{"$f":"MID(BD7,11,1)","v":""},{"$f":"MID(BD7,12,1)","v":""},{"$f":"MID(BD7,13,1)","v":""},{"$f":"MID(BD7,14,1)","v":""},{"$f":"MID(BD7,15,1)","v":""},{"$f":"MID(BD7,16,1)","v":""},{"$f":"MID(BD7,17,1)","v":""}]
[null,null,null,null,null,null,null,null,null,null,null,null,null,null,null,null,null,null,null,null,null,null,null,null,null,null,null,null,null,null,null,null,null,null,null,null,null,null,null,null,null,null,null,null,null,null,null,null,null,null,null,null,null,null,null,null,{"$f":"MID(BD8,1,1)","v":"京"},{"$f":"MID(BD8,2,1)","v":"都"},{"$f":"MID(BD8,3,1)","v":"府"},{"$f":"MID(BD8,4,1)","v":"千"},{"$f":"MID(BD8,5,1)","v":"代"},{"$f":"MID(BD8,6,1)","v":"田"},{"$f":"MID(BD8,7,1)","v":"区"},{"$f":"MID(BD8,8,1)","v":"淀"},{"$f":"MID(BD8,9,1)","v":"屋"},{"$f":"MID(BD8,10,1)","v":"橋"},null,{"$f":"MID(BD8,12,1)","v":""},{"$f":"MID(BD8,13,1)","v":""},{"$f":"MID(BD8,14,1)","v":""},{"$f":"MID(BD8,15,1)","v":""},{"$f":"MID(BD8,16,1)","v":""},{"$f":"MID(BD8,17,1)","v":""}]
[]
[4,null,null,null,null,null,null,null,null,null,null,null,null,null,null,null,null,null,null,null,null,null,null,null,null,null,null,null,null,null,null,null,null,null,null,null,null,null,null,null,null,null,null,null,null,null,null,null,null,null,null,null,null,{"$f":"MID(BD5,4,1)","v":""}]
[]
[]
[5,null,null,null,null,null,null,null,null,null,null,null,null,null,null,null,null,null,null,null,null,null,null,null,null,null,null,null,null,null,null,null,null,null,null,null,null,null,null,null,null,null,null,null,null,null,null,null,null,null,null,null,null,{"$f":"MID(BD5,5,1)","v":""}]
[]
[]
[6,null,null,null,null,null,null,null,null,null,null,null,null,null,null,null,null,null,null,null,null,null,null,null,null,null,null,null,null,null,null,null,null,null,null,null,null,null,null,null,null,null,null,null,null,null,null,null,null,null,null,null,null,{"$f":"MID(BD5,6,1)","v":""}]
[]
[]
[7,null,null,null,null,null,null,null,null,null,null,null,null,null,null,null,null,null,null,null,null,null,null,null,null,null,null,null,null,null,null,null,null,null,null,null,null,null,null,null,null,null,null,null,null,null,null,null,null,null,null,null,null,{"$f":"MID(BD5,7,1)","v":""}]
[]
[]
[8,null,null,null,null,null,null,null,null,null,null,null,null,null,null,null,null,null,null,null,null,null,null,null,null,null,null,null,null,null,null,null,null,null,null,null,null,null,null,null,null,null,null,null,null,null,null,null,null,null,null,null,null,{"$f":"IF(BF1=0,MID(BD5,8,1),BE11)","v":"京"}]
[]
[]
[9,null,null,null,null,null,null,null,null,null,null,null,null,null,null,null,null,null,null,null,null,null,null,null,null,null,null,null,null,null,null,null,null,null,null,null,null,null,null,null,null,null,null,null,null,null,null,null,null,null,null,null,null,{"$f":"MID(BD5,9,1)","v":""}]
[]
[]
[10,null,null,null,null,null,null,null,null,null,null,null,null,null,null,null,null,null,null,null,null,null,null,null,null,null,null,null,null,null,null,null,null,null,null,null,null,null,null,null,null,null,null,null,null,null,null,null,null,null,null,null,null,{"$f":"MID(BD5,10,1)","v":""}]
[]
[]
[11,null,null,null,null,null,null,null,null,null,null,null,null,null,null,null,null,null,null,null,null,null,null,null,null,null,null,null,null,null,null,null,null,null,null,null,null,null,null,null,null,null,null,null,null,null,null,null,null,null,null,null,null,{"$f":"MID(BD5,11,1)","v":""}]
[]
[]
[12,null,null,null,null,null,null,null,null,null,null,null,null,null,null,null,null,null,null,null,null,null,null,null,null,null,null,null,null,null,null,null,null,null,null,null,null,null,null,null,null,null,null,null,null,null,null,null,null,null,null,null,null,{"$f":"MID(BD5,12,1)","v":""}]
[]
[]
[13,null,null,null,null,null,null,null,null,null,null,null,null,null,null,null,null,null,null,null,null,null,null,null,null,null,null,null,null,null,null,null,null,null,null,null,null,null,null,null,null,null,null,null,null,null,null,null,null,null,null,null,null,{"$f":"MID(BD5,13,1)","v":""}]
[]
[]
[14,null,null,null,null,null,null,null,null,null,null,null,null,null,null,null,null,null,null,null,null,null,null,null,null,null,null,null,null,null,null,null,null,null,null,null,null,null,null,null,null,null,null,null,null,null,null,null,null,null,null,null,null,{"$f":"MID(BD5,14,1)","v":""}]
[]
[]
[15,null,null,null,null,null,null,null,null,null,null,null,null,null,null,null,null,null,null,null,null,null,null,null,null,null,null,null,null,null,null,null,null,null,null,null,null,null,null,null,null,null,null,null,null,null,null,null,null,null,null,null,null,{"$f":"MID(BD5,15,1)","v":""}]

{"sheet":"設定","index":1,"n_rows":30,"n_cols":28,"rows_kept":30,"cut":false,"hidden":false,"merged":[[8,2,8,29]]}
[null,null,null,null,{"$f":"印刷!BF1","v":1}]
[]
[]
[]
[]
[]
[null,null,null,null,null,null,null,null,null,null,null,null,null,"作成する文字を入力して下さい↓","（部分修正の場合はダブルクリックもしくはF2キーで編集できます）"]
[]
[null,null,"明けましておめでとう京都府千代田区淀屋橋"]
[]
[]
[null,null,null,null,null,null,null,null,null,null,null,null,null,null,null,"・入力された文字数が表示可能な文字数をオーバーすると枠↑が",null,"色に変わりますが、この場合でもシートは作成されます。"]
[null,null,null,null,null,null,null," 現在の手本配列","横","配列",null,null,"表示可能文字数 ： ",null,null,null,"縦 配列最大１５文字の手本文字作成"]
[null,null,null,null,null,null,null," 入力した文字数",{"$f":"LEN(C9)","v":20},"文字",null,{"$f":"IF(OR(AND(印刷!$BF$1=0,設定!I14>15),AND(印刷!$BF$1=1,設定!I14>20)),\"文字数オーバー\",\"\")","v":""},null,null,null,null,"横 配列一段で１０文字、二段で２０文字の手本文字作成"]
[null,null,null,null,null,null,null,null,null,"選択されている書体；","恋文ペン字"]
[null,null,null,"・文字は間を空けずに連続して入力して下さい。　"]
[null,null,null,"・フォントは用途によって毛筆体・ペン字体などを設定してご利用ください。(Webの無料配布サイトをご利用ください。)"]
[null,null,null,"　　フォントサイズは変更できません（固定されています）。"]
[null,null,null,"　　正方形の枠に表示されます。文字の型が三角型や菱型などの場合、フォントによっては枠内に収まらない場合が有ります。"]
[null,null,null,"・選択された書体によっては手本の印字ががマス目の中央からややずれるものがあります。　"]
[null,null,null,"・手本なしの空白シート(マス目のみのシート）を印刷するには“文字を総て消去する”を実行してから印刷してください。　"]
[null,null,null,null,null,null,null,null,null,null,{"$f":"IF(I14>34,\"文字数が３４文字を超えました\",\"\")","v":""}]
[]
[null,"活字体を練習しても意味が無い？　手書き書体や毛筆書体で練習を！"]
[null,null,"手書き文字について ： 作者のパソコンには筆ぐるめがインストールされていますので"]
[null,null,null,null,null,null,null,null,"　　　　　　　を良く使っています。"]
[null,null,null,null,null,null,null,null,"　　　　　　　　　も同じもののように思えます。"]
[null,null,"　　　　　 　の場合はお使いのパソコンにも多種インストールされているでしょう。"]
[null,null,"活字体しかないなら　　　　　　　や　　　　　　でしょうか？"]
[null,null,null,null,null,null,null,null,null,null,null,null,null,null,null,null,null,null,null,null,null,null,null,null,null,null,null,"Ver 1.11"]

{"sheet":"取説","index":2,"n_rows":74,"n_cols":21,"rows_kept":74,"cut":false,"hidden":false,"merged":[[59,4,59,17],[61,4,61,17]]}
[]
[null,null,null,null,null,null,null,null,null,null,"取 扱 い 要 領",null,null,null,null,null,null,null,null,null,"Ver 1.4"]
[]
[]
[null,null,"ボタンの機能"]
[]
[null,null,null,"“文字を総て削除する”"]
[null,null,null,null,"お手本作成用の入力枠の文字を総て削除します。"]
[null,null,null,"※ 白紙の練習シートが必要な場合は、このボタンを操作してから“印刷する”を実行すると"]
[null,null,null,null,"マス目だけのシートが印刷できます。"]
[]
[null,null,null,"“縦配列手本にする”　または　“横配列手本にする” （何れか一方が表示されている）。"]
[null,null,null,null,"お手本を作成するにあたって、お手本の文字の配列を変更します。"]
[null,null,null,null,null,"マス目がが限られています。おのずと設定できるお手本の文字数が制限されます。"]
[null,null,null,null,null,null,"お手本横配列の場合 ： お手本文字数 10文字の場合練習回数 14回"]
[null,null,null,null,null,null,null,null,null,null,null,null," お手本文字数 20文字の場合練習回数 6回もしくは 7回"]
[null,null,null,null,null,"        　　　　　　　　　　　　　　　　　　　","お手本縦配列の場合 ： お手本文字数 15文字の場合練習回数 14回"]
[]
[null,null,null,"“書体を選択する”"]
[null,null,null,null,"お手本に使用する書体(フォント)を選択します。"]
[null,null,null,null,null,"(註) フォント名(書体)以外の　文字サイズ　や　文字色　等は繁栄されません。"]
[]
[null,null,null,"“使い方を見る”",null,null,null,null,null,"←→",null,null,null,"“元の画面に戻る”"]
[null,null,null,null,"この画面を見れます。",null,null,null,null,null,null,null,null,null,"作成画面に戻ります。"]
[]
[null,null,null,"“プレビューを見る”"]
[null,null,null,null,"シートの出来上がり(印刷)状態を見ます。"]
[null,null,null,null,null,"表示された用紙の上でクリックする度に、拡大・縮小を繰り返します。"]
[null,null,null,null,null,null,"プレビューを終るには“印刷プレビュウを閉じる”をクリックする。"]
[null,null,null,null,null,null,null,"“印刷プレビュウを閉じる”が表示されていなかったら"]
[null,null,null,null,null,null,null,null,"ウインドウ右上隅の“閉じる”をクリックする。"]
[]
[]
[]
[null,null,null,"“印刷する”"]
[null,null,null,null,"印刷ダイアログが表示されます。"]
[null,null,null,null,null,"プリンターの選択 や 部数の設定 などを行います。"]
[null,null,null,null,null,"印刷はA4版用紙に設定されています。"]
[null,null,null,null,null,null,"プロパティ ボタンを使って用紙を変更して拡大印刷や縮小印刷ができます。"]
[null,null,null,null,null,null,null,"お手本文字が大きすぎる場合はB5用紙にして縮小印刷してください。"]
[null,null,null,null,null,null,null,"さらに大きくしたい場合でA３の印刷が可能名プリンタが有る場合は拡大してご利用ください。"]
[]
[null,null,null,"“保存する”"]
[null,null,null,null,"特に必要はないかとも思いましたが一応配置しておきました。"]
[null,null,null,null,null,"次も同じものをプリントしたい時に役立ちます。"]
[null,null,null,null,null,"変更した書体(フォント)を記憶させておきたい時にも…"]
[]
[null,null,null,"“終わる”"]
[null,null,null,null,"出来るだけこのボタンで終了してください。"]
[]
[null,null,"その他"]
[]
[null,null,null,"作成するお手本の書体は お使いのパソコンにインストールされているフォントから選択します。"]
[null,null,null,null,"書体(フォント)はインターネットから取得できるものもあります。"]
[null,null,null,null,"インターネットで “無料フォントダウンロード” 等と入力して検索してください。"]
[null,null,null,null,null,"ダウンロードしたフォントのインストールは事項を参照してください。"]
[]
[null,null,null,"フォントのインストール方法は次のサイト等をご覧ください。"]
[]
[null,null,null,null,"フォントのインストール方法（Windows 8 の場合）"]
[]
[null,null,null,null,"フォントのインストール方法（Windows 7 の場合）"]
[]
[]
[]
[]
[]
[]
[]
[null,null,null,null,null,null,null,"助け合い塾　　ＰＣサロン"]
[]
[]
[]
[null,null,null,null,null,null,null,null,"( URL ) ","http://pasobou.world.coocan.jp/"]